{"text_format":"1","workbook":"xlsx","n_sheets":3,"sheets":["Anfragedaten","ergebnis","Tarife"],"not_rendered":{"charts":0,"images":4,"macros":1,"external_links":0,"defined_names":26,"comments":1,"pivot_tables":0},"unopened":[],"bounds":{"document_bytes":16777216,"sheet_cells":100000,"rows_first":2000,"rows_last":500,"rows_between":2000,"halvings":0,"cell_chars":16384,"cell_head_chars":4096},"cells_cut":0,"cells_raw":0,"read":"whole","date_system":"1900"}

{"sheet":"Anfragedaten","index":0,"n_rows":55,"n_cols":43,"rows_kept":55,"cut":false,"hidden":false,"merged":[[48,2,50,10],[48,25,50,27],[49,18,49,19],[49,20,49,21],[49,22,49,23],[51,2,53,10],[51,25,53,27],[52,18,52,19],[52,20,52,21],[52,22,52,23],[45,2,47,10],[45,18,45,19],[45,20,45,21],[45,22,45,23],[45,25,47,27],[46,18,46,19],[46,20,46,21],[46,22,46,23],[34,24,34,27],[38,2,39,10],[38,12,39,16],[38,18,39,27],[41,25,44,27],[44,18,44,23],[33,18,33,19],[33,21,33,22],[34,2,34,10],[34,12,34,13],[34,15,34,16],[34,18,34,19],[34,21,34,22],[4,4,4,12],[4,17,4,24],[4,29,32,39],[6,4,6,12],[10,2,13,10],[10,13,13,27],[14,13,15,27],[25,20,26,27],[32,18,32,19],[32,21,32,22]]}
[]
[null,"Medizinische Vorprüfung DKV - keine Vorprüfung für \"Neues Antragskonzept\""]
[]
[null,null,null,null,null,null,null,null,null,null,null,null,null,null,null,null,null,null,null,null,null,null,null,null,null,null,null,null,null,null,null,null,null,null,null,null,null,null,null,null,null,false,{"$f":"IF(AP4=TRUE,2,1)","v":1}]
[null,null,"Name",null,null,null,null,null,null,null,null,null,null,null,"eMail-Adresse",null,null,null,null,null,null,null,null,null,null,null,null,null,null,"Wichtiger Hinweis:\n\nMit diesem Anfrageformular können Sie an die DKV eine unverbindliche Anfrage zur medizinischen Vorabprüfung richten. Bitte befüllen Sie alle Formularfelder. Nur wenn diese vollständig ausgefüllt sind, ist eine finale Bearbeitung Ihrer Anfrage möglich. \n\nNach Versand - bitte nutzen Sie den Button \"per eMail versenden\" - erhalten Sie eine Beurteilung auf Grundlage \nder übermittelten Daten. Bei der Einschätzung wird ein Bezug der angegebenen Vorerkrankungen auf die im KV-Antrag enthaltenen Gesundheitsfragen unterstellt. Insoweit fließen alle angegebenen Informationen in das Ergebnis der Auswertung ein.\n\nWir weisen daraufhin, dass die Einschätzung und das damit verbundene Ergebnis unverbindlich ist. Die Beurteilung stellt keine Annahmeentscheidung dar. Eine formelle Prüfung wurde nicht vorgenommen.\n\nEine abschliessende Annahmeentscheidung kann nur aufgrund eines ordentlichen Antrages erfolgen. \n\nWeiterhin weisen wir ausdrücklich darauf hin, dass eine Prüfung des Zahnzustandes im Rahmen einer \nmedizinischen Vorabprüfung nicht erfolgt!\n\nMit freundlichen Grüssen\nIhre DKV"]
[null,null,null,null,null,null,null,null,null,null,null,null,null,null,null,null,null,null,null,null,null,null,null,null,null,null,null,null,null,null,null,null,null,null,null,null,null,null,null,null,null,false,{"$f":"IF(AP6=TRUE,2,1)","v":1}]
[null,null,"BD - AGT"]
[]
[]
[]
[null,null,"Eigen- und Fremdbestandskunden der DKV:\nZur Durchführung einer Vorprüfung wird die Einwilligung zur vollständigen Auskunft an den Agenturpartner benötigt. Diese Einwilligung wird auf dem Formular A22 erklärt. Das A22 ist immer vorzulegen, sonst kann keine Vorabprüfung erfolgen.",null,null,null,null,null,null,null,null,null,null,"Interessenten/Neukunden:\nZur Durchführung einer Vorprüfung ist es notwendig, dass wir zur Begutachtung, Prüfung und Verarbeitung der Personen- und Gesundheitsdaten berechtigt werden. Wie wir mit den übersandten Daten umgehen, kann der nebenstehenden Information zum Datenschutz entnommen werden. Zur Bestätigung ist ein Formular A48/2 zu unterzeichnen, welches auf Verlangen vorzulegen ist.",null,null,null,null,null,null,null,null,null,null,null,null,null,null,null,null,null,null,null,null,null,null,null,null,null,null,null,1]
[null,null,null,null,null,null,null,null,null,null,null,null,null,null,null,null,null,null,null,null,null,null,null,null,null,null,null,null,null,null,null,null,null,null,null,null,null,null,null,null,null,1]
[null,null,null,null,null,null,null,null,null,null,null,null,null,null,null,null,null,null,null,null,null,null,null,null,null,null,null,null,null,null,null,null,null,null,null,null,null,null,null,null,null,1]
[null,null,null,null,null,null,null,null,null,null,null,null,null,null,null,null,null,null,null,null,null,null,null,null,null,null,null,null,null,null,null,null,null,null,null,null,null,null,null,null,null,1]
[null,null,null,null,null,null,null,null,null,null,null,null,null,"Bestätigung:\nDie versicherte Person wurde über den Umfang, die Form und den Zweck der Datenverarbeitung sowie die Möglichkeit der Verweigerung und die Widerruflichkeit der Einwilligung und deren Folgen informiert.",null,null,null,null,null,null,null,null,null,null,null,null,null,null,null,null,null,null,null,null,null,null,null,null,null,null,null,1]
[null,null,null,null,null,null,null,null,null,null,null,null,null,null,null,null,null,null,null,null,null,null,null,null,null,null,null,null,null,null,null,null,null,null,null,null,null,null,null,null,null,1]
[null,null,null,null,null,null,null,null,null,null,null,null,null,null,null,null,null,null,null,null,null,null,null,null,null,null,null,null,null,null,null,null,null,null,null,null,null,null,null,null,null,{"$f":"VLOOKUP((AP14+41),Tarife!1:1048576,4,FALSE)","v":2}]
[null,null,null,null,null,null,null,null,null,null,null,null,null,null,null,null,null,null,null,null,null,null,null,null,null,null,null,null,null,null,null,null,null,null,null,null,null,null,null,null,null,{"$f":"VLOOKUP((AP15+41),Tarife!1:1048576,4,FALSE)","v":2}]
[null,null,null,null,null,null,null,null,null,null,null,null,null,"Anonymisierte Vorprüfung:",null,null,null,null,null,null,null,null,null,null,null,null,null,null,null,null,null,null,null,null,null,null,null,null,null,null,null,{"$f":"VLOOKUP((AP16+41),Tarife!1:1048576,4,FALSE)","v":2}]
[null,null,null,null,null,null,null,null,null,null,null,null,null,null,null,null,null,null,null,null,null,null,null,null,null,null,null,null,null,null,null,null,null,null,null,null,null,null,null,null,null,{"$f":"VLOOKUP((AP11),Tarife!1:1048576,4,FALSE)","v":1}]
[null,null,null,null,null,null,null,null,null,null,null,null,null,null,null,null,null,null,null,null,null,null,null,null,null,null,null,null,null,null,null,null,null,null,null,null,null,null,null,null,null,{"$f":"VLOOKUP((AP12),Tarife!1:1048576,4,FALSE)","v":1}]
[null,null,null,null,null,null,null,null,null,null,null,null,null,null,null,null,null,null,null,null,null,null,null,null,null,null,null,null,null,null,null,null,null,null,null,null,null,null,null,null,null,{"$f":"VLOOKUP((AP13),Tarife!1:1048576,4,FALSE)","v":1}]
[null,null,"LNr",null,null,"KKV-Tarif",null,null,null,null,null,null,null,"Ergänzungstarife (z.B. KT, etc.)",null,null,null,null,null,null,"Bei Bestandskunden (Bitte unbedingt VNR angeben):"]
[null,null,null,null,null,null,null,null,null,null,null,null,null,null,null,null,null,null,null,null,null,null,null,null,null,null,null,null,null,null,null,null,null,null,null,null,null,null,null,null,null,{"$f":"IF(SUM(AP17:AP22)>6,\" Bei Bestands-RVA´s bitte vorher BestMed-ENU prüfen \",\"\")","v":" Bei Bestands-RVA´s bitte vorher BestMed-ENU prüfen "}]
[null,null,"1 Tarife"]
[null,null,null,null,null,null,null,null,null,null,null,null,null,null,null,null,null,null,null,null,"Die Gesundheitsangaben wurden abgefragt. Alle Erkrankungen und Arztbesuche sind der DKV bekannt"]
[null,null,"2 Alternative"]
[]
[null,null,"3 Alternative",null,null,null,null,null,null,null,null,null,null,null,null,null,null,null,null,null,null,null,null,null,null,null,null,null,null,null,true,null,null,null,null,null,null,null,null,null,null,false]
[]
[]
[]
[null,null,"Name der versicherten Person",null,null,null,null,null,null,null,null,null,"Geburtsdatum",null,null,"Geschlecht",null,null,"Größe",null,null,"Gewicht",null,null,"Versicherungsnummer"]
[null,null,null,null,null,null,null,null,null,null,null,null,null,null,null,null,null,null,"(cm)",null,null,"(kg)",null,null,"(bei Bestandskunden erforderlich)"]
[]
[]
[null,null,"Strasse, Nr., Postleitzahl, Ort",null,null,null,null,null,null,null,null,null,"Beruf",null,null,null,null,null,"Kurze Bemerkung (max. 200 Zeichen)"]
[]
[]
[]
[]
[null,null,"Bei der Angabe von Vorerkrankungen wird ein Bezug auf die im KV-Antrag gestellten Gesundheitsfragen unterstellt.",null,null,null,null,null,null,null,null,null,null,null,null,null,null,null,null,null,null,null,null,null,null,"ggf. weitere Behandlungen angeraten?\nwenn ja welche:"]
[null,null,"Vorerkrankung / Diagnose (ICD10) / Medikamente\n"]
[null,null,"(nur eine Erkrankung je Feld)"]
[null,null,null,null,null,null,null,null,null,null,null,null,null,null,null,null,null,null,"Behandlung"]
[null,null,null,null,null,null,null,null,null,null,null,null,"KH*",null,"OP*",null,"KF*",null,"von",null,"bis",null,"ausgeheilt"]
[]
[]
[null,null,null,null,null,null,null,null,null,null,null,null,"KH*",null,"OP*",null,"KF*"]
[]
[]
[null,null,null,null,null,null,null,null,null,null,null,null,"KH*",null,"OP*",null,"KF*"]
[]
[]
[null,null,null,null,null,null,null,null,null,null,null,"*KH = Behandlung hat im Krankenhaus stattgefunden #  *OP = Operation hat stattgefunden # *KF = Krankheitsfolgen vorhanden"]

{"sheet":"ergebnis","index":1,"n_rows":22,"n_cols":37,"rows_kept":22,"cut":false,"hidden":true,"merged":[[2,4,2,12],[2,13,2,15],[4,4,4,15],[5,4,5,7],[5,10,5,11],[5,12,5,16],[17,19,18,19],[18,1,19,7],[18,15,19,17],[6,1,6,2],[6,4,6,7],[6,10,6,16],[10,2,10,5],[10,8,10,10],[10,13,13,16],[11,2,11,5],[11,8,11,10],[12,2,12,5],[12,8,12,10],[20,1,21,7],[20,15,21,17],[15,15,15,17],[16,1,17,7],[16,15,17,17]]}
[null,"Medizinische Vorprüfung DKV ",null,null,null,null,null,null,null,"V22",null,null,null,{"$f":"(RIGHT(O1,8))","v":"0"},{"$f":"N3","v":0},null,null,null,null,null,null,null,null,null,null,{"$f":"C11","v":"bitte auswählen"},"N.N.","Name","Vorname","Geb. Datum","Zugangsweg","Versicherungsart","verteilt am","Eingangsdatum","Bearbeiter","VNR","Lfd.-Nr."]
[null,null,null,null,null,null,null,null,null,null,null,null,null,null,null,null,null,null,null,null,null,null,null,null,null,{"$f":"C12","v":"bitte auswählen"},{"$f":"CONCATENATE(AB2,AC2,AD2)","v":"00"},{"$f":"E7","v":0},null,{"$f":"I7","v":"00:00:00"},{"$f":"U3","v":0},{"$f":"U5","v":0},{"$f":"U12","v":0},{"$f":"U10","v":0},null,{"$f":"B7","v":0},{"$f":"J1","v":"V22"}]
[null,"Rückantwort an ",null,null,{"$f":"Anfragedaten!$E$5","v":0},null,null,null,null,null,null,null,null,{"$f":"Anfragedaten!$R$5","v":0},null,null,null,null,null,null,null,null,null,null,null,{"$f":"C13","v":"bitte auswählen"}]
[]
[null,"Absender / Datum",null,null,null,null,null,null,null,null,null,null,null,null,null,null,null,null,null,null,null,null,null,null,null,{"$f":"I11","v":"bitte auswählen"}]
[null,"Versicherungsnummer",null,null,"Name der versicherten Person",null,null,null,"Geburts-datum","m/w","Strasse, HsNr.",null,"Postleitzahl, Ort",null,null,null,null,null,null,null,null,null,null,null,null,{"$f":"I12","v":"bitte auswählen"}]
[null,{"$f":"Anfragedaten!$Y$35","v":0},null,null,{"$f":"Anfragedaten!$C$35","v":0},null,null,null,{"$f":"Anfragedaten!$M$35","v":"00:00:00"},{"$f":"Anfragedaten!$P$35","v":0},{"$f":"Anfragedaten!$C$39","v":0},null,null,null,null,null,null,null,null,null,null,null,null,null,null,{"$f":"I13","v":"bitte auswählen"}]
[]
[null,"Gewünschter Versicherungsschutz"]
[null,"LNr","KKV-Tarife",null,null,null,null,"LNr","Ergänzungstarife",null,null,null,"Größe","Bei Bestandskunden:",null,null,null,null,null,null,null,null,null,null,null,false]
[null,1,{"$f":"VLOOKUP(Anfragedaten!AP11,Tarife!A:D,2,FALSE)","v":"bitte auswählen"},null,null,null,null,4,{"$f":"VLOOKUP((Anfragedaten!AP14+30),Tarife!A:D,2,FALSE)","v":"bitte auswählen"},null,null,null,{"$f":"Anfragedaten!$S$35","v":0},"Die Gesundheitsangaben wurden abgefragt. Alle Erkrankungen und Arztbesuche sind der DKV bekannt"]
[null,2,{"$f":"VLOOKUP(Anfragedaten!AP12,Tarife!A:D,2,FALSE)","v":"bitte auswählen"},null,null,null,null,5,{"$f":"VLOOKUP((Anfragedaten!AP15+30),Tarife!A:D,2,FALSE)","v":"bitte auswählen"},null,null,null,"Gewicht"]
[null,3,{"$f":"VLOOKUP(Anfragedaten!AP13,Tarife!A:D,2,FALSE)","v":"bitte auswählen"},null,null,null,null,6,{"$f":"VLOOKUP((Anfragedaten!AP16+30),Tarife!A:D,2,FALSE)","v":"bitte auswählen"},null,null,null,{"$f":"Anfragedaten!$V$35","v":0}]
[]
[null,"Angaben zur Person",null,null,null,"Bitte fügen Sie einem folgenden Antrag das Ergebnis dieser MVP bei!!"]
[null,"ICD-Code / Diagnosen",null,null,null,null,null,null,"KH","OP","KF","von /","bis","ausgeheilt?",null,"Behandlung, ggfs. weitere"]
[null,{"$f":"Anfragedaten!$C$46","v":0},null,null,null,null,null,null,{"$f":"Anfragedaten!$M$47","v":"00:00:00"},{"$f":"Anfragedaten!$O$47","v":"00:00:00"},{"$f":"Anfragedaten!$Q$47","v":"00:00:00"},{"$f":"Anfragedaten!$S$47","v":"00:00:00"},{"$f":"Anfragedaten!$U$47","v":"00:00:00"},{"$f":"Anfragedaten!$W$47","v":"00:00:00"},0,{"$f":"Anfragedaten!$Z$46","v":0},null,null,null,"Befunde lagen vor"]
[null,null,null,null,null,null,null,null,null,null,null,null,"00:00:00"]
[null,{"$f":"Anfragedaten!$C$49","v":0},null,null,null,null,null,null,{"$f":"Anfragedaten!$M$50","v":"00:00:00"},{"$f":"Anfragedaten!$O$50","v":"00:00:00"},{"$f":"Anfragedaten!$Q$50","v":"00:00:00"},{"$f":"Anfragedaten!$S$50","v":"00:00:00"},{"$f":"Anfragedaten!$U$50","v":"00:00:00"},{"$f":"Anfragedaten!$W$50","v":"00:00:00"},0,{"$f":"Anfragedaten!$Z$49","v":0}]
[null,null,null,null,null,null,null,null,null,null,null,null,"00:00:00"]
[null,{"$f":"Anfragedaten!$C$52","v":0},null,null,null,null,null,null,{"$f":"Anfragedaten!$M$53","v":"00:00:00"},{"$f":"Anfragedaten!$O$53","v":"00:00:00"},{"$f":"Anfragedaten!$Q$53","v":"00:00:00"},{"$f":"Anfragedaten!$S$53","v":"00:00:00"},{"$f":"Anfragedaten!$U$53","v":"00:00:00"},{"$f":"Anfragedaten!W53","v":"00:00:00"},0,{"$f":"Anfragedaten!$Z$52","v":0}]
[null,null,null,null,null,null,null,null,null,null,null,null,"00:00:00"]

{"sheet":"Tarife","index":2,"n_rows":61,"n_cols":4,"rows_kept":61,"cut":false,"hidden":true,"merged":[]}
[1,"bitte auswählen",0,1]
[2,"BestMed 3 [Bisex]",0,2]
[3,"BestMed 4 / 0 [Bisex]",0,2]
[4,"BestMed 4 / 1 [Bisex]",0,2]
[5,"BestMed 4 / 2 [Bisex]",0,2]
[6,"BestMed 4 / 3 [Bisex]",0,2]
[7,"BestMed 5 / 0 [Bisex]",0,2]
[8,"BestMed 5 / 1 [Bisex]",0,2]
[9,"BestMed 5 / 2 [Bisex]",0,2]
[10,"BestMed 5 / 3 [Bisex]",0,2]
[11,"BME1 [Unisex]",0,2]
[12,"BME2 [Unisex]",0,2]
[13,"BMK0 [Unisex]",0,2]
[14,"BMK1 [Unisex]",0,2]
[15,"BMK2 [Unisex]",0,2]
[16,"BMK3 [Unisex]",0,2]
[17,"BMUNI [Unisex]",0,2]
[18,"PMN0 [Unisex]",0,1]
[19,"PMN1 [Unisex]",0,1]
[20,"PMN2 [Unisex]",0,1]
[21,"PMA0 [Unisex]",0,1]
[22,"PMA1 [Unisex]",0,1]
[23,"PMA2 [Unisex]",0,1]
[24,"Tarif BK(A/F) [Unisex]",0,1]
[25,"Tarif BKE(A/F) [Unisex]",0,1]
[26,"Vollmed M4 - BR0 [Bisex]",20,1]
[27,"Vollmed M4 - BR1 [Bisex]",20,1]
[28,"Vollmed M4 - BR2 [Bisex]",20,1]
[29,"Vollmed M4 - BR3 [Bisex]",20,1]
[30,"Vollmed M4 - BR4 [Bisex]",20,1]
[31,"bitte auswählen",0,1]
[32,"BEX (A) [Unisex]",0,2]
[33,"BEXE(A) [Unisex]",0,2]
[34,"BKEH(A) [Unisex]",0,2]
[35,"BKH1 (A) [Unisex]",0,2]
[36,"BKH2(A/F) Unisex)",0,2]
[37,"BKHE(A) [Unisex]",0,2]
[38,"BMG0 [Unisex]",0,2]
[39,"BMG1 [Unisex]",0,2]
[40,"BMG2 [Unisex]",0,2]
[41,"BMG3 [Unisex]",0,2]
[42,"BMZ1 [Unisex]",0,2]
[43,"BMZ2 [Unisex]",0,1]
[44,"KAMP0 [Unisex]",0,1]
[45,"KAMP1 [Unisex]",0,1]
[46,"KT 4. Tag [Unisex]",0,1]
[47,"KT 8. Tag [Unisex]",0,1]
[48,"KT 15. Tag [Unisex]",0,1]
[49,"KT 22. Tag [Unisex]",0,1]
[50,"KT 29. Tag [Unisex]",0,1]
[51,"KT 43. Tag [Unisex]",0,1]
[52,"KT 64. Tag [Unisex]",0,1]
[53,"KT 85. Tag [Unisex]",0,1]
[54,"KT 92. Tag [Unisex]",0,1]
[55,"KT 106. Tag [Unisex]",0,1]
[56,"KT 127. Tag [Unisex]",0,1]
[57,"KT 169. Tag [Unisex]",0,1]
[58,"KT 183. Tag [Unisex]",0,1]
[59,"KT 274. Tag [Unisex]",0,1]
[60,"KT 365. Tag [Unisex]",0,1]
[null,"nicht belegt",0,1]